Cogmind - Beta 9.6 --- EXPLORER MODE // 2020.04.24 @ 21:30:09 Player: viper Result: Self-destructed Performance ------------- Evolutions (3) 1500 Regions Visited (4) 800 Robots Destroyed (130) 650 Value Destroyed (3676) 3676 Prototype IDs (8) 160 Alien Tech Used (0) 0 Bonus (0) 0 TOTAL SCORE: 6786 Bonus ------- None Cogmind --------- Core Integrity 557/700 Matter 296/300 Energy 360/360 System Corruption 2% Temperature Cool (327) Movement Walking (153) Ox1 Location -7/Factory Parts ------- > --- POWER (2) -------- Heavy Deuterium Engine Light Angular Momentum Engine > --- PROPULSION (4) --- Aluminum Leg Aluminum Leg Improved Titanium Leg > --- UTILITY (6) ------ High-capacity Storage Unit Seismic Analyzer Target Analyzer Utility Shielding Hacking Suite > --- WEAPON (2) ------- (None) > --- INVENTORY (12) --- Improved Deuterium Engine Improved Deuterium Engine Power Amplifier High-capacity Storage Unit Medium Matter Pod (100) Advanced Visual Processing Unit Improved Targeting Computer Improved Targeting Computer Hacking Suite System Shield System Backup Module Peak State ------------ > --- POWER ------------ Improved Deuterium Engine Heavy Deuterium Engine > --- PROPULSION ------- Titanium Leg Improved Carbon-fiber Leg Improved Carbon-fiber Leg Improved Titanium Leg > --- UTILITY ---------- High-capacity Storage Unit Weight Redist. System Improved Terrain Scanner Seismic Analyzer Utility Shielding Hacking Suite > --- WEAPON ----------- Gauss Rifle Advanced Assault Cannon > --- INVENTORY -------- Improved Deuterium Engine Improved Deuterium Engine Improved Deuterium Engine High-capacity Storage Unit Medium Matter Pod Advanced Visual Processing Unit Improved Targeting Computer Improved Targeting Computer Hacking Suite System Shield System Backup Module [Rating: 45] Favorites ----------- Power Improved Deuterium Engine Engine Improved Deuterium Engine Power Core Nuclear Core Propulsion Aluminum Leg Leg Aluminum Leg Utility Seismic Analyzer Device Improved Terrain Scanner Storage High-capacity Storage Unit Processor Seismic Analyzer Hackware Hacking Suite Protection Utility Shielding Weapon Assault Rifle Energy Gun Particle Gun Ballistic Gun Assault Rifle Ballistic Cannon Advanced Assault Cannon Build | -11 -10 -9 -8 -7 ------- Run | Scr Mat Mat Mat Fac Slots Evolved 7 | . 1 2 2 2 Power 1 | . . 1 . . Propulsion 2 | . . . 2 . Utility 4 | . 1 1 . 2 Weapon . | . . . . . Parts Attached 52 | 7 5 13 10 17 Power 10 | 1 1 4 2 2 Engine 8 | 1 1 2 2 2 Core 2 | . . 2 . . Reactor . | . . . . . Propulsion 18 | 2 1 3 7 5 Treads . | . . . . . Leg 18 | 2 1 3 7 5 Wheel . | . . . . . Hover . | . . . . . Flight . | . . . . . Utility 10 | 2 3 2 . 3 Device 4 | 1 1 2 . . Storage 2 | 1 1 . . . Processor 2 | . 1 . . 1 Hackware 1 | . . . . 1 Protection 1 | . . . . 1 Artifact . | . . . . . Weapon 14 | 2 . 4 1 7 Energy Gun 3 | . . . . 3 Energy Cannon . | . . . . . Ballistic Gun 10 | 2 . 4 1 3 Ballistic Cannon 1 | . . . . 1 Launcher . | . . . . . Special Weapon . | . . . . . Impact Weapon . | . . . . . Slashing Weapon . | . . . . . Piercing Weapon . | . . . . . Special Melee Weapon . | . . . . . Unidentified Prototypes 1 | . . . . 1 Parts Lost 17 | . . 3 2 12 Power 2 | . . 1 . 1 Propulsion 4 | . . . 1 3 Utility 3 | . . 1 . 2 Weapon 8 | . . 1 1 6 Highest Loss Streak 4 | . . 1 1 4 Average Slot Usage (%) 95 | . 100 92 98 93 Engine 11 | . 12 12 4 13 Core 1 | . . . 11 . Leg 23 | . 25 20 32 23 Device 14 | . 12 19 16 12 Storage 8 | . 12 10 8 7 Processor 9 | . 12 10 8 8 Hackware 3 | . . . . 7 Protection 3 | . . . . 7 Energy Gun 1 | . . . . 2 Ballistic Gun 14 | . 25 19 15 7 Ballistic Cannon 1 | . . . . 3 Naked Turns . | . . . . . Heaviest Build 66 | 18 42 54 59 66 Greatest Support 79 | 20 20 26 70 79 Greatest Overweight (x) 13 | 5 13 4 1 3 Average Overweight (x) . | 1 1 2 . . Largest Inventory Capacity 12 | 8 12 12 12 12 Average Capacity 11 | 7 11 12 12 12 Most Carried 12 | 4 9 10 10 12 Average Carried 7 | 1 5 6 6 9 Final Capacity 12 | 8 12 12 12 12 Final Carried 11 | 4 7 9 10 11 Class Distribution -------------------- 76% | Hacker-Mutant 19% | Hacker-Skirmisher 4% | Scavenger-Mutant Dominant Class ---------------- Hacker-Mutant | -10/Materials Hacker-Skirmisher | -9/Materials Hacker-Mutant | -8/Materials Hacker-Mutant | -7/Factory Resources | -11 -10 -9 -8 -7 ----------- Run | Scr Mat Mat Mat Fac Matter Collected 2825 | 182 390 649 437 1167 Remotely . | . . . . . Salvage Created 4710 | . 666 1130 995 1919 Parts 302 | . 51 69 51 131 Haulers Intercepted 2 | . 1 . . 1 Recyclers Shooed 7 | . 1 1 1 4 Parts Field Recycled . | . . . . . Retrieved Matter . | . . . . . Parts Self-Destructed . | . . . . . Prevented . | . . . . . Kills | -11 -10 -9 -8 -7 ------- Run | Scr Mat Mat Mat Fac Combat Hostiles Destroyed 80 | . 11 22 14 33 Guns 66 | . 11 22 14 19 Cannons 14 | . . . . 14 Classes Destroyed 13 | . 7 2 2 2 Worker 12 | . 2 . 2 8 Builder 12 | . 5 . 1 6 Tunneler 1 | . . . . 1 Hauler 2 | . 1 . . 1 Recycler 10 | . 1 3 3 3 Operator 4 | . . 1 2 1 Watcher 9 | . 3 1 1 4 Swarmer 16 | . 4 7 2 3 Grunt 39 | . 7 9 6 17 Duelist 3 | . . . 2 1 Sentry 12 | . . 6 3 3 Hunter 6 | . . . 1 5 Programmer 4 | . . . . 4 Best Kill Streak 9 | . 3 5 9 6 Combat Bots Only 7 | . 2 4 7 6 Max Kills in Single Turn 3 | . 2 1 2 3 Gunslinging . | . . . . . Exploded . | . . . . . Melee . | . . . . . Uniques/NPCs Destroyed . | . . . . . Combat | -11 -10 -9 -8 -7 -------- Run | Scr Mat Mat Mat Fac Damage Taken 3362 | . 199 814 602 1747 Core 456 | . 70 178 65 143 Absorbed by Shields . | . . . . . Core Remaining (%) 78 | 100 72 55 88 . Volleys Fired 363 | . 42 101 60 160 Largest 2 | . 2 2 2 2 Hottest 110 | . 40 46 46 110 Shots Fired 641 | . 84 182 98 277 Gun 560 | . 84 182 98 196 Cannon 81 | . . . . 81 Launcher . | . . . . . Special . | . . . . . Kinetic 593 | . 84 182 98 229 Thermal 26 | . . . . 26 Explosive . | . . . . . Electromagnetic 22 | . . . . 22 Robot Hit Streak 42 | . 22 31 28 42 Robot Miss Streak 4 | . 1 2 1 4 Penetration Max 1 | . . . . 1 Secondary Targets 3 | . 1 1 1 . Max Gunslinging Chain 1 | . 1 1 1 . Shots Hit Robots 540 | . 60 161 90 229 Core Hits 245 | . 33 48 49 115 Critical Hits 11 | . 1 . . 10 Critical Kills 6 | . 1 . . 5 Critical Parts Destroyed 5 | . . . . 5 Melee Attacks . | . . . . . Impact . | . . . . . Slashing . | . . . . . Piercing . | . . . . . Sneak Attacks . | . . . . . Combat Hostiles . | . . . . . Follow-up Attacks . | . . . . . Damage Inflicted 9174 | . 773 2122 1375 4904 Guns 7274 | . 773 2111 1375 3015 Cannons 1663 | . . . . 1663 Explosions 206 | . . . . 206 Melee . | . . . . . Ramming 31 | . . 11 . 20 Kinetic 8423 | . 773 2111 1375 4164 Thermal 369 | . . . . 369 Explosive 206 | . . . . 206 Electromagnetic 145 | . . . . 145 Impact . | . . . . . Slashing . | . . . . . Piercing . | . . . . . Highest Corruption 2 | . . . . 2 Average Corruption 1 | . . . . 1 Corruption Purged . | . . . . . Effects 1 | . . . . 1 Heat Flow Errors 1 | . . . . 1 Overload Shots . | . . . . . Overflow Damage 49 | . . . . 49 Projectiles 49 | . . . . 49 Explosions . | . . . . . Melee . | . . . . . Knockbacks 11 | . . . . 11 Impact . | . . . . . Kinetic 10 | . . . . 10 Secondary 1 | . . . . 1 Self-Inflicted Damage 103 | . . . . 103 Shots 2 | . . . . 2 Rammed . | . . . . . Targets Rammed 3 | . . 1 . 2 Kicked 3 | . . 1 . 2 Crushed . | . . . . . Highest Temperature 384 | . 2 29 27 384 Average Temperature 60 | . 1 8 8 78 Received Heat Transfer 1491 | . 129 564 243 555 Effects 1 | . . . . 1 Shutdowns 1 | . . . . 1 Siege Activations . | . . . . . Robots Corrupted . | . . . . . Combat Hostiles . | . . . . . Parts Fried . | . . . . . Impact Corruptions . | . . . . . Robots Melted . | . . . . . Combat Hostiles . | . . . . . Parts Melted 2 | . . . . 2 Heat Transferred 777 | . . . . 777 Parts Sabotaged . | . . . . . Parts Stolen . | . . . . . Parts Stripped . | . . . . . Power Chain Reactions . | . . . . . Missiles Intercepted . | . . . . . Alert | -11 -10 -9 -8 -7 ------- Run | Scr Mat Mat Mat Fac Peak Influence 371 | . 231 331 371 317 Average Influence 120 | . 83 176 184 103 Maximum Alert Level 1 | . 1 1 1 1 Low Security (%) 78 | 100 95 54 58 85 Level 1 21 | . 4 45 41 14 Level 2 . | . . . . . Level 3 . | . . . . . Level 4 . | . . . . . Level 5 . | . . . . . High Security . | . . . . . Max Security . | . . . . . Squads Dispatched 20 | . 2 3 3 12 Investigation 13 | . 2 3 2 6 Extermination 4 | . . . . 4 Reinforcement 2 | . . . 1 1 Assault . | . . . . . Garrison 1 | . . . . 1 Intercept . | . . . . . Construction Impeded . | . . . . . Haulers Reinforced . | . . . . . Stealth | -11 -10 -9 -8 -7 --------- Run | Scr Mat Mat Mat Fac Distress Signals 9 | . 1 3 3 2 Communications Jammed . | . . . . . Distress Signals . | . . . . . Times Spotted 115 | . 16 31 22 46 Peak Tracking Total 8 | . 2 5 8 3 Tactical Retreats 3 | . . 3 . . Traps | -11 -10 -9 -8 -7 ------- Run | Scr Mat Mat Mat Fac Traps Triggered 1 | . 1 . . . Indirectly . | . . . . . Trap Hack Attempts . | . . . . . Triggered . | . . . . . Disarmed 4 | . . . 4 . Reprogrammed . | . . . . . Reused . | . . . . . Traps Extracted . | . . . . . Installed . | . . . . . Triggered . | . . . . . Machines | -11 -10 -9 -8 -7 ---------- Run | Scr Mat Mat Mat Fac Machines Disabled 10 | . . 1 . 9 Max in Single Turn 4 | . . 1 . 4 Machines Sabotaged . | . . . . . Garrisons Compromised . | . . . . . Overloaded Fab Kills . | . . . . . Fab Network Shutdowns . | . . . . . Hacking | -11 -10 -9 -8 -7 --------- Run | Scr Mat Mat Mat Fac Machines Accessed 22 | . 7 4 4 7 Terminals 17 | . 7 3 4 3 Fabricators 2 | . . . . 2 Repair Stations 1 | . . 1 . . Recycling Units 1 | . . . . 1 Scanalyzers 1 | . . . . 1 Garrison Access . | . . . . . Total Hacks 103 | . 35 12 25 31 Successful 82 | . 26 11 21 24 Failed 21 | . 9 1 4 7 Catastrophic . | . . . . . Database Lockouts . | . . . . . Manual . | . . . . . Terminals 82 | . 35 9 25 13 Fabricators 6 | . . . . 6 Repair Stations 3 | . . 3 . . Recycling Units 7 | . . . . 7 Scanalyzers 5 | . . . . 5 Garrison Access . | . . . . . Terminal Hacks 63 | . 26 8 21 8 Record 8 | . 5 1 1 1 Part Schematic 1 | . . . . 1 Robot Schematic 1 | . . . . 1 Prototype ID Bank 4 | . 2 . 2 . Branch Access Points 3 | . 1 . 1 1 Emergency Access Points 3 | . . . 2 1 Terminal Index 1 | . 1 . . . Alert Level 6 | . . 1 5 . Unreport Threat 2 | . . . 2 . Locate Traps 5 | . 1 1 2 1 Disarm Traps 1 | . . . 1 . Dispatch Records 5 | . 4 1 . . Maintenance Status 3 | . 2 . 1 . Security Status 1 | . . . 1 . Patrol Status 2 | . 2 . . . Transport Status 2 | . 1 . 1 . Investigation Status 1 | . . . 1 . Reinforcement Status 2 | . 2 . . . Recall Investigation 1 | . . . 1 . Recall Reinforcements 2 | . 2 . . . Hauler Manifests 2 | . 2 . . . Registered Components 1 | . . 1 . . Zone Layout 6 | . 1 3 . 2 Fabricator Hacks 4 | . . . . 4 Load Schematic 2 | . . . . 2 Build 2 | . . . . 2 Repair Station Hacks 3 | . . 3 . . Scan Component 2 | . . 2 . . Repair 1 | . . 1 . . Recycling Unit Hacks 7 | . . . . 7 Recycle Component 4 | . . . . 4 Process 3 | . . . . 3 Scanalyzer 5 | . . . . 5 Insert Component 2 | . . . . 2 Analyze 3 | . . . . 3 Garrison Access Hacks . | . . . . . Unauthorized Hacks . | . . . . . Terminals . | . . . . . Fabricators . | . . . . . Repair Stations . | . . . . . Recycling Units . | . . . . . Scanalyzers . | . . . . . Garrison Access . | . . . . . Data Cores Recovered . | . . . . . Used . | . . . . . Hacking Detections 21 | . 6 4 4 7 Full Trace Events 20 | . 6 4 4 6 Feedback Events . | . . . . . Feedback Blocked . | . . . . . Robot Schematics Acquired 1 | . . . . 1 Robots Built . | . . . . . Matter 252 | . . . . 252 Time 134 | . . . . 134 Total Robot Build Rating . | . . . . . Part Schematics Acquired 2 | . . . . 2 Parts Built 2 | . . . . 2 Matter 190 | . . . . 190 Time 95 | . . . . 95 Total Part Build Rating 10 | . . . . 10 Parts Repaired 1 | . . 1 . . Time 26 | . . 26 . . Parts Recycled 4 | . . . . 4 Recycled Matter 38 | . . . . 38 Retrieved Matter . | . . . . . Retrieved Components . | . . . . . Parts Scanalyzed 2 | . . . . 2 Part Schematics Acquired 1 | . . . . 1 Parts Damaged . | . . . . . Bothacking | -11 -10 -9 -8 -7 ------------ Run | Scr Mat Mat Mat Fac Used RIF Installer . | . . . . . Robots Hacked . | . . . . . Non-combat . | . . . . . Combat . | . . . . . Robot Hacks Applied . | . . . . . Relay Couplers Released . | . . . . . Robots Rewired . | . . . . . Allies Hacked . | . . . . . Hacks Repelled . | . . . . . Allies | -11 -10 -9 -8 -7 -------- Run | Scr Mat Mat Mat Fac Total Allies . | . . . . . Largest Group . | . . . . . Highest-Rated Group . | . . . . . Highest-Rated Ally . | . . . . . Total Orders . | . . . . . Ally Attacks . | . . . . . Total Damage . | . . . . . Kills . | . . . . . Allies Corrupted . | . . . . . Allies Melted . | . . . . . Intel | -11 -10 -9 -8 -7 ------- Run | Scr Mat Mat Mat Fac Robot Analysis Total . | . . . . . Derelict Logs Recovered . | . . . . . Drone Launches . | . . . . . Drone Recoveries . | . . . . . Exploration | -11 -10 -9 -8 -7 ------------- Run | Scr Mat Mat Mat Fac Turns Passed 4196 | 121 770 899 427 1979 Spaces Moved 1830 | 62 367 301 172 928 Core 40 | 36 4 . . . Treads . | . . . . . Legs 1790 | 26 363 301 172 928 Wheels . | . . . . . Hover . | . . . . . Flight . | . . . . . Fastest Speed 50 | 50 120 180 127 125 Average Speed 152 | 150 166 180 140 140 Slowest Speed 700 | 300 700 240 150 220 Overloaded Moves . | . . . . . Propulsion Burnouts . | . . . . . Robots Hopped . | . . . . . Cave-ins Triggered . | . . . . . Exploration Rate (%) 30 | 4 53 43 23 27 Regions Visited 4 Branch Regions . Pre-discovered Areas . | . . . . . Known Exits Taken 4 | 1 1 1 1 . Unknown Exits Taken . | . . . . . Scrap Searched . | . . . . . Spaces Dug . | . . . . . Terrain Destroyed 39 | . . . . 39 Melee . | . . . . . Projectile 8 | . . . . 8 AOE 31 | . . . . 31 Actions | -11 -10 -9 -8 -7 --------- Run | Scr Mat Mat Mat Fac Total 2582 | 86 443 470 257 1326 Wait 301 | 14 24 54 9 200 Move 1826 | 61 366 300 171 928 Hop . | . . . . . Pick Up 21 | 4 3 . 3 11 Fast Attach 21 | 7 . 4 2 8 Attach 11 | . 1 3 4 3 Detach . | . . . . . Swap 20 | . 4 6 4 6 Drop 16 | . 3 1 4 8 Fire 363 | . 42 101 60 160 Melee . | . . . . . Ram . | . . . . . Kick 3 | . . 1 . 2 Crush . | . . . . . Escape Stasis . | . . . . . Rewire . | . . . . . Trap . | . . . . . Miscellaneous . | . . . . . Route ------- -11/Scrapyard -10/Materials (discovered 3 exits: *Mat x2 / *Min) -9/Materials (discovered 2 exits: *Mat / *Min) -8/Materials -7/Factory (discovered 4 exits: *Sto x2 / *Low x2) History --------- Turn | Location | Event 3 | -11/Scrapyard | Identified exit to Materials 3 | -11/Scrapyard | Discovered exit to Materials (range 15) 122 | -11/Scrapyard | Entered Materials 122 | -10/Materials | Evolved 1 slot: Utility x1 230 | -10/Materials | Identified exit to Mines 315 | -10/Materials | Build established: Hacker-Mutant 480 | -10/Materials | Identified exit to Materials 480 | -10/Materials | Discovered exit to Materials (range 11) 791 | -10/Materials | Discovered exit to Materials (range 16) 892 | -10/Materials | Entered another Materials area 892 | -9/Materials | Evolved 2 slots: Power x1, Utility x1 1110 | -9/Materials | Identified exit to Mines 1110 | -9/Materials | Discovered exit to Mines (range 9) 1183 | -9/Materials | Build established: Hacker-Skirmisher 1336 | -9/Materials | Repaired Ion Engine 1737 | -9/Materials | Identified exit to Materials 1737 | -9/Materials | Discovered exit to Materials (range 12) 1791 | -9/Materials | Entered another Materials area 1791 | -8/Materials | Evolved 2 slots: Propulsion x2 1946 | -8/Materials | Destroyed 7 combat bots 2173 | -8/Materials | Identified exit to Factory 2173 | -8/Materials | Discovered exit to Factory (range 15) 2218 | -8/Materials | Entered Factory 2218 | -7/Factory | Evolved 2 slots: Utility x2 2373 | -7/Factory | Build established: Hacker-Mutant 2656 | -7/Factory | Identified exit to Storage 2656 | -7/Factory | Identified exit to Lower Caves 3370 | -7/Factory | Fabricated Power Amplifier (x2) 3832 | -7/Factory | Lost 4 parts (2n1u1w) 4041 | -7/Factory | Garrison activated, responded to threat 4197 | -7/Factory | Self-destructed Last Messages --------------- 04140_ Acquired Aluminum Leg. 04169_ System corrupted: Heat flow error (+279). 04175_ Connecting with Fabricator... >>Load(L-41 Fighter) Uploading L-41 Fighter schematic... Loaded successfully: L-41 Fighter Tier: 4 Time: 44 Matter: 252 Initiate build sequence. 04175_ ALERT: Suspicious activity at Fabricator F005. Dispatching Investigation squad. 04180_ Slug penetrates Wall. 04185_ Fusion Modulator explodes. 04185_ Fabricator disabled. 04185_ Hvy. EM Pulse Gun destroyed. 04185_ Imp. Terrain Scanner destroyed. 04195_ Penetrated by Slug. 04195_ Particle Gun destroyed. Map ----- +----------------------------------------------------+ | ?????????????????????????????????????????????????? | | ?????????????????????????????????????????????????? | | ?????????????????????????????????????????????????? | | ?????????????????????????????????????????????????? | | ?????????????????????????????????????????????????? | | ?????????????????????????????????????????????????? | | ?????????????????????????????????????????????????? | | ?????????????????????????????????????????????????? | | ???????????????????? ????????????????????????????? | | ???????????????#?????????????????????????????????? | | ???????? ????????#?#?????+???????????????????????? | | ????????? ??#?#??????#?? ? ?????????????????????? | | ?????????????##?#?????#?? ??? ???#???????????????? | | ????????? ??? ????? ????>? ?????????????????????? | | ??????? ?? ??########???? ???????????????????????? | | ???????? ????#] !###? ???????? ?? ???????????? | | ??????????#?## #??## ###????#???????????????? | | ????#????#?#?#""" [ #???# ###?#??????????????????? | | ?????#??#?#?##""" #####h#####+##???????????????? | | ?? ???#??#?#?#""" # # ??????????????? | | ?? ??####?####? # #???????????????? | | ?? #?############+### #??? ?????????? | | ? ^ ### [[ # ?????????? | | ## ###?####+## ### [g ;g ""?????????? | | ?? # # #?# "" [! ; ""?????????? | | #? #"?"" + ### "" @ ; ""?????????? | | ## #"""" ] #### ### "" ; ????????? | | ## #"""" #### #?# ""F ; ""?????????? | | ## #"""" ! #?## ### """ ; ""?????????? | | ## #"""" #### ### " ; "??????????? | | #"""" ! #### ### ; ??????????? | | # ? ## #####;;;;;;;;;###+#??#+??????? | | #####+###### ???????? | | !% ! ???????? | | !###### ^ ???????? | | ###### #######+####+########????????? | | " ########+#### ? ?? ? ??? ?????????????? | | " ####?? ?#"? ? ???? ?????????????? | | " ##### [!##?" ?# ? ???? ?? ????????? | | "" "" #?#?# [!##?T? ??# ????????????????? | | ""G"" #??## ! ##"? ?#? ?????""???????????? | | ###########?## ##"?? ??#? ??????????????????? | | #?#???##???### ] ##?? ? ??? ??????????????? | | ????###?###?########## "?? ?????????????????????? | | ???##?###??#?###??####? ""???#???????????????????? | | ?####??#???#??#??#####? ?"? ??? ?????????????????? | | ??#???#?#?#??#??###??? ???? ?????????????????????? | | ?????#???#??#?##??#??#???????????????????????????? | | #????????#????#??#?#?#???????????????????????????? | | #?##??##?????????????????? ??????????????????????? | +----------------------------------------------------+ Best States ------------- Heat Dissipation 34 Energy Generation 31 Energy Capacity 500 Matter Stores 300 Matter Capacity 300 Sight Range 16 Terrain Scan Range 16 Terrain Scan Density 60 Additional Mass Support 6 Resistance: KI 35 Resistance: TH 35 Resistance: EX 35 Resistance: EM 35 Resistance: I 35 Resistance: S 35 Resistance: P 35 Utility Shielding 33 Evasion (%) 50 Target Analysis 5 Offensive Hacking 30 Item Schematics ----------------- Imp. Aluminum Leg | -7/Factory | Scanalyzed Imp. Thermal Shield | -7/Factory | Hacked Robot Schematics ------------------ L-41 Fighter | -7/Factory | Hacked Fabricated ------------ Power Amplifier | x2 | -7/Factory | Preloaded Alien Tech Used ----------------- None Achievements -------------- None Challenges ------------ None Game ------ Seed FortressBattleFilter Manual? 0 Play Time 00:43:43 Cumulative 775.2 hours Start 2020.04.24 @ 20:49:07 End 2020.04.24 @ 21:30:09 Sessions 1 Manual Loads 0 Difficulty Explorer Special Mode None Game No. 606 Rogue 62 Adventurer 0 Explorer 544 Win Type - Total 2 Types 2/0/0/0/0/0/0 Lore% 74 Gallery% 81 Achievement% 58 Wizard Run 0 Options --------- ASCII 0 Keyboard 0 Movement Mouse Keybinds 0 Fullscreen 1 Font 24/Smallcaps Map View 76x50 Tactical HUD 1 Map Filters NONE Filters NONE Steam 1 RUN: 76c00ad1-2c13-4af7-a7fb-d94a25beb18f